fUST/lending_fUST_20250730
["ID","MTS","AMOUNT","RATE_DAILY","PERIOD"]
[376156957,1753878022351,-480.76886307,0.00018821,2]
[376156958,1753878022382,-460.0,0.00018822,2]
[376156959,1753878022411,-460.0,0.00018822,2]
[376156960,1753878022441,-200.87,0.00018822,2]
[376156961,1753878022470,-300.0,0.00018822,2]
[376156962,1753878022498,-460.0,0.00018822,2]
[376156963,1753878022527,-460.0,0.00018822,2]
[376156964,1753878022556,-460.0,0.00018822,2]
[376156965,1753878022587,-460.0,0.00018822,2]
[376156966,1753878022616,-55.79925154,0.00018823,2]
[376156967,1753878022647,-460.0,0.00018823,2]
[376156968,1753878022678,-105.12377078,0.00018823,2]
[376156969,1753878022855,-354.87622922,0.00018823,2]
[376156970,1753878022889,-460.0,0.00018823,2]
[376156971,1753878022918,-460.0,0.00018823,2]
[376156972,1753878022951,-460.0,0.00018823,2]
[376156973,1753878022981,-460.0,0.00018823,2]
[376156974,1753878023011,-460.0,0.00018823,2]
[376156975,1753878023041,-460.0,0.00018823,2]
[376156976,1753878023070,-460.0,0.00018823,2]
[376156977,1753878023098,-460.0,0.00018823,2]
[376156978,1753878023132,-460.0,0.00018823,2]
[376156979,1753878023161,-460.0,0.00018823,2]
[376156980,1753878023273,-561.06975132,0.00018823,2]
[376156981,1753878024365,460.0,0.00018822,2]
[376156982,1753878026043,460.0,0.00018821,2]
[376156983,1753878027167,460.0,0.00018823,2]
[376156984,1753878029509,460.0,0.00018823,2]
[376156985,1753878029542,460.0,0.00018822,2]
[376156986,1753878029700,460.0,0.00018821,2]
[376156987,1753878031442,460.0,0.00018822,2]
[376156988,1753878032940,460.0,0.00018823,2]
[376156989,1753878034196,460.0,0.00018823,2]
[376156990,1753878037750,460.0,0.00018822,2]
[376156991,1753878041589,460.0,0.00018823,2]
[376156992,1753878041619,404.24615811,0.00018822,2]
[376156993,1753878042125,460.0,0.00018823,2]
[376156994,1753878042185,460.0,0.00018821,2]
[376156995,1753878049197,460.0,0.00018822,2]
[376156996,1753878049429,460.0,0.00018822,2]
[376156997,1753878056619,462.58601337,0.00018822,2]
[376156998,1753878057237,460.0,0.00018822,2]
[376156999,1753878061684,460.0,0.00018822,2]
[376157000,1753878065546,191.02832588,0.00018822,2]
[376157001,1753878065569,268.97167412,0.00018822,2]
[376157002,1753878066828,460.0,0.00018823,2]
[376157003,1753878068447,5000.0,0.0001885,2]
[376157004,1753878070324,460.0,0.00018822,2]
[376157005,1753878073584,330.59,0.00018821,2]
[376157006,1753878075045,460.0,0.00018823,2]
[376157007,1753878076730,3020.43832588,0.0001885,2]
[376157008,1753878076755,1979.56167412,0.0001885,2]
[376157009,1753878078235,318.79,0.00018822,2]
[376157010,1753878083589,307.41,0.00018821,2]
[376157011,1753878085083,460.0,0.00018821,2]
[376157012,1753878085456,175.2637051,0.00018822,2]
[376157013,1753878087477,460.0,0.00018822,2]
[376157014,1753878093043,465.68,0.00018823,2]
[376157015,1753878093638,5000.0,0.0001885,2]
[376157016,1753878094645,460.0,0.00018821,2]
[376157017,1753878094717,373.29462078,0.00018822,2]
[376157018,1753878094740,86.70537922,0.00018822,2]
[376157019,1753878098782,420.8,0.00018823,2]
[376157020,1753878099025,460.0,0.00018823,2]
[376157021,1753878100807,460.0,0.00018821,2]
[376157022,1753878105123,460.0,0.00018823,2]
[376157023,1753878110699,460.0,0.00018822,2]
[376157024,1753878112760,5000.0,0.0001885,2]
[376157025,1753878114758,460.0,0.00018822,2]
[376157026,1753878115399,165.670204,0.00013699,2]
[376157027,1753878115458,460.0,0.00018822,2]
[376157029,1753878122591,392.99,0.00018823,2]
[376157030,1753878122988,5126.5775749,0.00026027,120]
[376157031,1753878123483,460.0,0.00018823,2]
[376157032,1753878127779,460.0,0.00018822,2]
[376157033,1753878128736,253.83441678,0.0001885,2]
[376157034,1753878128761,4746.16558322,0.0001885,2]
[376157035,1753878145568,460.0,0.00018823,2]
[376157036,1753878147422,4793.83441678,0.0001885,2]
[376157037,1753878147448,206.16558322,0.0001885,2]
[376157038,1753878149020,460.0,0.00018823,2]
[376157039,1753878151122,460.0,0.00018823,2]
[376157040,1753878152221,330.60084364,0.00018823,2]
[376157041,1753878154094,460.0,0.00018821,2]
[376157042,1753878157574,488.43,0.00018821,2]
[376157043,1753878159037,460.0,0.00018823,2]
[376157044,1753878161699,328.47,0.00018822,2]
[376157045,1753878173139,460.0,0.00018823,2]
[376157046,1753878174366,6346.33357314,0.00017994,2]
[376157047,1753878174389,10000.0,0.00017994,2]
[376157048,1753878174410,10000.0,0.00017994,2]
[376157049,1753878174432,68909.10196856,0.00017994,2]
[376157050,1753878178910,5000.0,0.000188,2]
[376157051,1753878183690,213.631375,0.00018333,2]
[376157052,1753878184072,306.65256578,0.00018403,2]
[376157053,1753878186937,5000.0,0.000188,2]
[376157054,1753878195945,5000.0,0.000188,2]
[376157055,1753878204260,-460.0,0.00018821,2]
[376157056,1753878204290,-460.0,0.00018821,2]
[376157057,1753878204320,-191.87,0.00018822,2]
[376157058,1753878204355,-460.0,0.00018822,2]
[376157059,1753878204385,-460.0,0.00018823,2]
[376157060,1753878204415,-460.0,0.00018823,2]
[376157061,1753878204446,-460.0,0.00018823,2]
[376157062,1753878204474,-460.0,0.00018823,2]
[376157063,1753878204503,-460.0,0.00018823,2]
[376157064,1753878204531,-559.68,0.00018823,2]
[376157065,1753878204560,-265.14,0.00018823,2]
[376157066,1753878204592,-146.62,0.00018823,2]
[376157067,1753878204969,-313.38,0.00018823,2]
[376157068,1753878204999,-410.96985935,0.00018823,2]
[376157069,1753878205030,-460.0,0.00018823,2]
[376157070,1753878206360,460.0,0.00018823,2]
[376157071,1753878212668,5000.0,0.0001885,2]
[376157072,1753878222562,467.56894109,0.00018823,2]
[376157073,1753878225624,493.99278416,0.00018821,2]
[376157074,1753878228716,460.0,0.00018823,2]
[376157075,1753878230143,749.73855605,0.0001885,2]
[376157076,1753878230167,4250.26144395,0.0001885,2]
[376157077,1753878231415,303.39647819,0.00018823,2]
[376157078,1753878234408,460.0,0.00018823,2]
[376157079,1753878238884,460.0,0.00018821,2]
[376157080,1753878241419,460.0,0.00018822,2]
[376157081,1753878242458,460.0,0.00018823,2]
[376157082,1753878247537,3606.34207786,0.0001885,2]
[376157083,1753878247559,1393.65792214,0.0001885,2]
[376157084,1753878256474,460.0,0.00018823,2]
[376157085,1753878257407,460.0,0.00018823,2]
[376157086,1753878258073,462.63813508,0.00018822,2]
[376157087,1753878260568,460.0,0.00018822,2]
[376157088,1753878263235,5000.0,0.0001885,2]
[376157089,1753878264231,460.0,0.00018821,2]
[376157090,1753878265250,460.0,0.00018822,2]
[376157091,1753878266121,555.97,0.00018821,2]
[376157092,1753878266693,287.73394278,0.00018822,2]
[376157093,1753878266716,172.26605722,0.00018822,2]
[376157094,1753878275413,460.0,0.00018823,2]
[376157095,1753878276953,460.0,0.00018821,2]
[376157096,1753878277153,460.0,0.00018822,2]
[376157097,1753878279457,5000.0,0.0001885,2]
[376157098,1753878285134,485.23,0.00018823,2]
[376157099,1753878290443,460.0,0.00018822,2]
[376157100,1753878291724,460.0,0.00018822,2]
[376157101,1753878295179,2042.50394278,0.0001885,2]
[376157102,1753878295202,2957.49605722,0.0001885,2]
[376157103,1753878303916,460.0,0.00018823,2]
[376157104,1753878309327,460.0,0.00018823,2]
[376157105,1753878310056,460.0,0.00018822,2]
[376157106,1753878311398,5000.0,0.0001885,2]
[376157107,1753878311503,461.81384529,0.00018822,2]
[376157109,1753878320187,200.69009749,0.00018823,2]
[376157110,1753878320213,259.30990251,0.00018823,2]
[376157111,1753878322342,460.0,0.00018822,2]
[376157112,1753878324520,460.0,0.00018823,2]
[376157113,1753878325646,389.48,0.00018821,2]
[376157114,1753878327520,5000.0,0.0001885,2]
[376157115,1753878327792,333.06,0.00018823,2]
[376157116,1753878328046,460.0,0.00018823,2]
[376157117,1753878331289,572.29,0.00018821,2]
[376157118,1753878345073,2065.86009749,0.0001885,2]
[376157119,1753878345098,2934.13990251,0.0001885,2]
[376157120,1753878345211,460.0,0.00018823,2]
[376157121,1753878351663,460.0,0.00018822,2]
[376157123,1753878356498,460.0,0.00018822,2]
[376157124,1753878356765,460.0,0.00018823,2]
[376157125,1753878358999,460.0,0.00018822,2]
[376157126,1753878361544,4765.86009749,0.0001885,2]
[376157127,1753878361567,234.13990251,0.0001885,2]
[376157128,1753878368059,460.0,0.00018822,2]
[376157129,1753878372057,460.0,0.00018823,2]
[376157130,1753878373778,460.0,0.00018822,2]
[376157131,1753878377545,5000.0,0.0001885,2]
[376157132,1753878380276,460.0,0.00018823,2]
[376157133,1753878381126,460.0,0.00018823,2]
[376157134,1753878381618,460.0,0.00018823,2]
[376157135,1753878384999,460.0,0.00018821,2]
[376157136,1753878391564,191.39214408,0.00018823,2]
[376157137,1753878391673,414.26391369,0.00018822,2]
[376157138,1753878392264,460.0,0.00018823,2]
[376157139,1753878393965,480.20403972,0.0001885,2]
[376157140,1753878393993,4519.79596028,0.0001885,2]
[376157141,1753878397515,460.0,0.00018823,2]
[376157142,1753878402879,460.0,0.00018823,2]
[376157143,1753878410214,4560.20403972,0.0001885,2]
[376157144,1753878419039,152.3548301,0.000188,2]
[376157148,1753878600651,10000.0,0.00018019,2]
[376157149,1753878604836,5000.0,0.000188,2]
[376157151,1753878624033,439.79596028,0.000188,2]
[376157189,1753878638596,-273.51934707,0.0001882,2]
[376157191,1753878638608,-26.48065293,0.0001882,2]
[376157194,1753878638617,-279.54,0.00018821,2]
[376157196,1753878638627,-12.91024939,0.00018821,2]
[376157199,1753878638638,-395.29975061,0.00018821,2]
[376157202,1753878638649,-426.42,0.00018821,2]
[376157204,1753878638658,-425.89,0.00018821,2]
[376157207,1753878638668,-370.40948069,0.00018821,2]
[376157209,1753878638677,-159.74896364,0.00018821,2]
[376157211,1753878638689,-300.25103636,0.00018821,2]
[376157213,1753878638698,-152.7465161,0.00018821,2]
[376157215,1753878638707,-460.0,0.00018821,2]
[376157217,1753878638718,-460.0,0.00018821,2]
[376157219,1753878638727,-212.16654462,0.00018821,2]
[376157221,1753878638736,-460.0,0.00018821,2]
[376157223,1753878638746,-460.0,0.00018821,2]
[376157225,1753878638755,-460.0,0.00018822,2]
[376157227,1753878638764,-460.0,0.00018822,2]
[376157229,1753878638774,-460.0,0.00018822,2]
[376157231,1753878638784,-605.86973502,0.00018822,2]
[376157233,1753878638793,-460.0,0.00018822,2]
[376157235,1753878638803,-460.0,0.00018822,2]
[376157237,1753878638812,-460.0,0.00018822,2]
[376157239,1753878638822,-460.0,0.00018822,2]
[376157241,1753878638831,-388.59109973,0.00018822,2]
[376157243,1753878638840,-460.0,0.00018822,2]
[376157245,1753878638850,-460.0,0.00018822,2]
[376157247,1753878638859,-460.0,0.00018822,2]
[376157249,1753878638869,-460.0,0.00018822,2]
[376157251,1753878638878,-489.63309258,0.00018822,2]
[376157253,1753878638887,-460.0,0.00018822,2]
[376157255,1753878638899,-460.0,0.00018822,2]
[376157257,1753878638908,-460.0,0.00018822,2]
[376157259,1753878638919,-460.0,0.00018822,2]
[376157261,1753878638928,-460.0,0.00018822,2]
[376157263,1753878638938,-169.48627539,0.00018822,2]
[376157265,1753878638947,-460.0,0.00018822,2]
[376157267,1753878638957,-460.0,0.00018822,2]
[376157269,1753878638967,-460.0,0.00018822,2]
[376157271,1753878638977,-460.0,0.00018822,2]
[376157273,1753878638986,-460.0,0.00018822,2]
[376157275,1753878638996,-460.0,0.00018823,2]
[376157277,1753878639005,-460.0,0.00018823,2]
[376157279,1753878639015,-524.783828,0.00018823,2]
[376157281,1753878639025,-460.0,0.00018823,2]
[376157283,1753878639034,-460.0,0.00018823,2]
[376157285,1753878639044,-460.0,0.00018823,2]
[376157287,1753878639054,-460.0,0.00018823,2]
[376157289,1753878639063,-500.0,0.00018823,2]
[376157291,1753878639073,-460.0,0.00018823,2]
[376157293,1753878639082,-460.0,0.00018823,2]
[376157295,1753878639092,-460.0,0.00018823,2]
[376157297,1753878639101,-460.0,0.00018823,2]
[376157299,1753878639110,-460.0,0.00018823,2]
[376157301,1753878639120,-460.0,0.00018823,2]
[376157303,1753878639129,-460.0,0.00018823,2]
[376157305,1753878639139,-460.0,0.00018823,2]
[376157307,1753878639149,-500.0,0.00018823,2]
[376157309,1753878639159,-186.02740413,0.00018893,2]
[376157311,1753878639168,-436.36541277,0.000189,2]
[376157313,1753878639177,-1676.56929756,0.00018972,2]
[376157315,1753878639187,-500.0,0.00018973,2]
[376157317,1753878639196,-502.08710618,0.00018973,2]
[376157319,1753878639206,-500.0,0.00018973,2]
[376157321,1753878639215,-501.1678831,0.00018973,2]
[376157323,1753878639225,-500.0,0.00018973,2]
[376157325,1753878639234,-780.43,0.00018985,3]
[376157327,1753878639243,-460.0,0.00018992,2]
[376157328,1753878639252,-460.0,0.00018992,2]
[376157330,1753878639262,-267.04968769,0.00018993,2]
[376157332,1753878639272,-489.16242598,0.00018993,2]
[376157335,1753878639281,-460.0,0.00018993,2]
[376157337,1753878639291,-460.0,0.00018993,2]
[376157339,1753878639300,-460.0,0.00018993,2]
[376157340,1753878639311,-460.0,0.00018993,2]
[376157343,1753878639322,-460.0,0.00018993,2]
[376157344,1753878639333,-463.13647076,0.00018993,2]
[376157346,1753878639342,-460.0,0.00018993,2]
[376157348,1753878639352,-460.0,0.00018993,2]
[376157350,1753878639363,-469.85547791,0.00018993,2]
[376157352,1753878639372,-460.0,0.00018993,2]
[376157354,1753878639382,-460.0,0.00018993,2]
[376157356,1753878639391,-323.69083466,0.00018993,2]
[376157358,1753878639404,-460.0,0.00018993,2]
[376157360,1753878639415,-175.44,0.00018993,2]
[376157362,1753878639425,-460.0,0.00018993,2]
[376157364,1753878639435,-460.0,0.00018993,2]
[376157367,1753878639445,-460.0,0.00018993,2]
[376157369,1753878639454,-265.7,0.00018993,2]
[376157371,1753878639463,-460.0,0.00018993,2]
[376157373,1753878639473,-460.0,0.00018993,2]
[376157375,1753878639482,-460.0,0.00018993,2]
[376157377,1753878639491,-460.0,0.00018993,2]
[376157379,1753878639502,-460.0,0.00018993,2]
[376157381,1753878639511,-462.3523654,0.00018993,2]
[376157383,1753878639520,-591.8168312,0.00018993,2]
[376157385,1753878639530,-460.0,0.00018993,2]
[376157387,1753878639539,-460.0,0.00018993,2]
[376157389,1753878639549,-460.0,0.00018993,2]
[376157391,1753878639558,-460.0,0.00018993,2]
[376157392,1753878639567,-368.96,0.00018993,2]
[376157394,1753878639576,-460.0,0.00018993,2]
[376157397,1753878639591,-409.46012293,0.00018993,2]
[376157399,1753878639600,-535.11303983,0.00018993,2]
[376157401,1753878639609,-460.0,0.00018993,2]
[376157403,1753878639618,-460.0,0.00018993,2]
[376157405,1753878639628,-460.0,0.00018993,2]
[376157407,1753878639638,-460.0,0.00018994,2]
[376157409,1753878639651,-460.0,0.00018994,2]
[376157411,1753878639660,-460.0,0.00018994,2]
[376157413,1753878639669,-568.86874209,0.00018994,2]
[376157415,1753878639679,-460.0,0.00018994,2]
[376157417,1753878639688,-460.0,0.00018994,2]
[376157419,1753878639697,-460.0,0.00018994,2]
[376157421,1753878639706,-154.11700291,0.00018994,2]
[376157423,1753878639715,-208.88014699,0.00018994,2]
[376157424,1753878639724,-463.79116499,0.00018994,2]
[376157426,1753878639733,-460.0,0.00018994,2]
[376157428,1753878639743,-460.0,0.00018994,2]
[376157430,1753878639752,-460.0,0.00018994,2]
[376157432,1753878639761,-460.0,0.00018994,2]
[376157434,1753878639770,-460.0,0.00018994,2]
[376157436,1753878639779,-460.0,0.00018994,2]
[376157438,1753878639789,-460.0,0.00018994,2]
[376157440,1753878639798,-460.0,0.00018994,2]
[376157442,1753878639807,-460.0,0.00018994,2]
[376157444,1753878639817,-460.0,0.00018994,2]
[376157445,1753878639827,-460.0,0.00018994,2]
[376157447,1753878639836,-460.0,0.00018994,2]
[376157449,1753878639845,-460.0,0.00018994,2]
[376157451,1753878639855,-618.11,0.00018994,2]
[376157453,1753878639865,-286.58,0.00018994,2]
[376157455,1753878639874,-163.17093908,0.00018994,2]
[376157457,1753878639883,-500.0,0.00018994,2]
[376157459,1753878639893,-381.20084733,0.00018994,2]
[376157461,1753878639903,-500.0,0.00018994,2]
[376157463,1753878639912,-182.62658582,0.00018994,2]
[376157464,1753878639922,-170854.21693018,0.00018995,2]
[376157465,1753878639946,-845.02006,0.00018995,2]
[376157466,1753878639962,-3303.1600718,0.00018995,2]
[376157467,1753878639981,-55578.79242736,0.00018995,2]
[376157468,1753878639993,-46918.62079463,0.00018995,2]
[376158009,1753878645846,-460.0,0.00018822,2]
[376158011,1753878645856,-49.52806293,0.00018822,2]
[376158080,1753878646369,-410.47193707,0.00018822,2]
[376158082,1753878646379,-6.74456293,0.00018823,2]
[376158094,1753878646484,-453.25543707,0.00018823,2]
[376158097,1753878646495,-460.0,0.00018992,2]
[376158099,1753878646504,-1044.10171669,0.00018995,2]
[376158101,1753878646516,-613.11537314,0.00018995,2]
[376158105,1753878646543,-4948.19559774,0.00018995,2]
[376159302,1753878680886,166.0,0.00017989,2]
[376159304,1753878787421,205.35467697,0.00018257,2]
[376159306,1753878833514,2050.2415859,0.00026545,120]
[376159309,1753878948206,24900.0,0.00017878,2]
[376159311,1753879009512,15033.379362,0.00017878,2]
[376159312,1753879011155,7122.3118209,0.00017878,2]
[376159314,1753879115150,1416.18139439,0.000188,2]
[376159315,1753879201100,236.2006505,0.00017878,2]
[376159317,1753879283608,165.670204,0.00013699,2]
[376159342,1753879405180,944.12092958,0.000188,2]
[376159343,1753879482138,447.7579135,0.00017878,2]
[376159346,1753879597746,-1053.62485016,0.0001882,2]
[376159347,1753879597777,-372.081126,0.0001882,2]
[376159348,1753879597808,-300.0,0.0001882,2]
[376159349,1753879597837,-460.0,0.00018821,2]
[376159350,1753879597865,-460.0,0.00018821,2]
[376159351,1753879597895,-460.0,0.00018821,2]
[376159352,1753879597924,-505.32782001,0.00018821,2]
[376159353,1753879597952,-460.0,0.00018821,2]
[376159354,1753879597980,-460.0,0.00018821,2]
[376159355,1753879598025,-460.0,0.00018821,2]
[376159356,1753879598200,-460.0,0.00018821,2]
[376159357,1753879598229,-461.82083269,0.00018821,2]
[376159358,1753879598262,-460.0,0.00018821,2]
[376159359,1753879598294,-502.22799852,0.00018821,2]
[376159360,1753879598325,-460.0,0.00018821,2]
[376159361,1753879598356,-460.0,0.00018821,2]
[376159362,1753879598387,-460.0,0.00018821,2]
[376159363,1753879598420,-460.0,0.00018821,2]
[376159364,1753879598449,-527.68955278,0.00018821,2]
[376159365,1753879598480,-460.0,0.00018821,2]
[376159366,1753879598510,-116.52323202,0.00018821,2]
[376159367,1753879598664,-343.47676798,0.00018821,2]
[376159368,1753879598694,-460.0,0.00018821,2]
[376159369,1753879598725,-460.0,0.00018821,2]
[376159370,1753879598753,-460.0,0.00018821,2]
[376159371,1753879598781,-460.0,0.00018821,2]
[376159372,1753879598816,-460.0,0.00018821,2]
[376159373,1753879598849,-460.0,0.00018821,2]
[376159374,1753879598877,-460.0,0.00018821,2]
[376159375,1753879598907,-460.0,0.00018822,2]
[376159376,1753879598936,-460.0,0.00018822,2]
[376159377,1753879598965,-485.13556336,0.00018822,2]
[376159378,1753879599144,-62.77533732,0.00018822,2]
[376159379,1753879599328,-460.0,0.00018822,2]
[376159380,1753879599362,-460.0,0.00018822,2]
[376159381,1753879599392,-460.0,0.00018822,2]
[376159382,1753879599422,-460.0,0.00018822,2]
[376159383,1753879599453,-460.0,0.00018822,2]
[376159384,1753879599484,-460.0,0.00018822,2]
[376159385,1753879599514,-460.0,0.00018822,2]
[376159386,1753879599543,-460.0,0.00018822,2]
[376159387,1753879599572,-460.0,0.00018822,2]
[376159388,1753879599602,-460.0,0.00018822,2]
[376159389,1753879599636,-214.44932536,0.00018822,2]
[376159390,1753879600040,-245.55067464,0.00018822,2]
[376159391,1753879600069,-193.49244197,0.00018822,2]
[376159392,1753879600097,-460.0,0.00018822,2]
[376159393,1753879600126,-460.0,0.00018822,2]
[376159394,1753879600156,-460.0,0.00018822,2]
[376159395,1753879600193,-491.06481864,0.00018822,2]
[376159396,1753879600222,-321.23880755,0.00018822,2]
[376159397,1753879600250,-460.0,0.00018822,2]
[376159398,1753879600280,-460.0,0.00018822,2]
[376159399,1753879600309,-460.0,0.00018822,2]
[376159400,1753879600340,-460.0,0.00018822,2]
[376159401,1753879600370,-460.0,0.00018822,2]
[376159402,1753879600498,-461.78887317,0.00018822,2]
[376159403,1753879600526,-460.0,0.00018822,2]
[376159404,1753879600554,-460.0,0.00018822,2]
[376159405,1753879600582,-151.23,0.00018822,2]
[376159406,1753879600609,-383.73020888,0.00018822,2]
[376159407,1753879600640,-460.0,0.00018822,2]
[376159408,1753879600675,-460.0,0.00018822,2]
[376159409,1753879600708,-460.0,0.00018822,2]
[376159410,1753879600737,-460.0,0.00018822,2]
[376159411,1753879600765,-460.0,0.00018822,2]
[376159412,1753879600795,-460.0,0.00018822,2]
[376159413,1753879600823,-186.5018359,0.00018822,2]
[376159414,1753879601028,-273.4981641,0.00018822,2]
[376159415,1753879601057,-460.0,0.00018822,2]
[376159416,1753879601086,-460.0,0.00018822,2]
[376159417,1753879601117,-1740.45,0.00018822,2]
[376159418,1753879601152,-341.0399233,0.00018822,2]
[376159419,1753879601183,-1522.9,0.00018822,2]
[376159420,1753879601223,-460.0,0.00018822,2]
[376159421,1753879601253,-460.0,0.00018822,2]
[376159422,1753879601282,-460.0,0.00018822,2]
[376159423,1753879601311,-471.53444114,0.00018822,2]
[376159424,1753879601340,-460.0,0.00018822,2]
[376159425,1753879601369,-460.0,0.00018822,2]
[376159426,1753879601402,-460.0,0.00018822,2]
[376159427,1753879601431,-460.0,0.00018822,2]
[376159428,1753879601462,-460.0,0.00018822,2]
[376159429,1753879601492,-460.0,0.00018822,2]
[376159430,1753879601521,-316.93111772,0.00018822,2]
[376159431,1753879601654,-143.06888228,0.00018822,2]
[376159432,1753879601688,-460.0,0.00018822,2]
[376159433,1753879601723,-460.0,0.00018822,2]
[376159434,1753879601752,-460.0,0.00018822,2]
[376159435,1753879601781,-219.61239014,0.00018822,2]
[376159436,1753879601812,-460.0,0.00018822,2]
[376159437,1753879601965,-489.76577529,0.00018822,2]
[376159438,1753879601995,-460.0,0.00018822,2]
[376159439,1753879602024,-460.0,0.00018822,2]
[376159440,1753879602052,-156.36003472,0.00018822,2]
[376159441,1753879602082,-460.0,0.00018822,2]
[376159442,1753879602111,-460.0,0.00018822,2]
[376159443,1753879602148,-162.38583514,0.00018823,2]
[376159444,1753879602363,-297.61416486,0.00018823,2]
[376159445,1753879602394,-460.0,0.00018823,2]
[376159446,1753879602426,-771.16,0.00018823,2]
[376159447,1753879602466,-460.0,0.00018823,2]
[376159448,1753879602497,-460.0,0.00018823,2]
[376159449,1753879602526,-460.0,0.00018823,2]
[376159450,1753879602622,460.0,0.00018822,2]
[376159451,1753879603794,460.0,0.00018822,2]
[376159452,1753879605238,460.0,0.00018821,2]
[376159453,1753879608933,460.0,0.00018821,2]
[376159454,1753879610838,460.86277649,0.00018823,2]
[376159455,1753879612611,1881.58889379,0.0001885,2]
[376159456,1753879620906,3931.72291947,0.000188,2]
[376159457,1753879632642,-460.0,0.00018821,2]
[376159458,1753879632674,-460.0,0.00018821,2]
[376159459,1753879632702,-460.0,0.00018821,2]
[376159460,1753879632733,-460.0,0.00018821,2]
[376159461,1753879632762,-460.0,0.00018821,2]
[376159462,1753879632792,-470.57,0.00018822,2]
[376159463,1753879632823,-463.27187243,0.00018822,2]
[376159464,1753879632853,-460.0,0.00018822,2]
[376159465,1753879632885,-460.0,0.00018822,2]
[376159466,1753879632915,-460.0,0.00018822,2]
[376159467,1753879632947,-307.83206564,0.00018822,2]
[376159468,1753879633181,-156.65212386,0.00018822,2]
[376159469,1753879633214,-460.0,0.00018822,2]
[376159470,1753879633245,-655.22,0.00018823,2]
[376159471,1753879633278,-3118.41110621,0.0001885,2]
[376159472,1753879634777,471.91796571,0.00018822,2]
[376159473,1753879635206,248.054084,0.0001882,2]
[376159474,1753879636567,462.63270597,0.00018821,2]
[376159475,1753879638924,36.82878418,0.00018822,2]
[376159476,1753879638952,423.17121582,0.00018822,2]
[376159477,1753879642738,460.0,0.00018821,2]
[376159478,1753879644270,460.0,0.00018822,2]
[376159479,1753879645869,460.0,0.00018821,2]
[376159480,1753879647015,460.0,0.00018821,2]
[376159481,1753879650781,460.0,0.00018822,2]
[376159482,1753879650819,460.0,0.00018822,2]
[376159483,1753879651117,460.0,0.00018821,2]
[376159484,1753879651810,460.0,0.00018822,2]
[376159485,1753879657884,460.0,0.00018821,2]
[376159486,1753879661226,460.0,0.00018822,2]
[376159487,1753879662297,627.92,0.00018823,2]
[376159488,1753879663915,460.0,0.00018821,2]
[376159489,1753879664052,722.93,0.00018821,2]
[376159490,1753879676096,460.0,0.00018821,2]
[376159491,1753879676453,460.0,0.00018821,2]
[376159492,1753879677018,460.0,0.00018822,2]
[376159494,1753879680613,1785.97878418,0.0001792,2]
[376159495,1753879680637,8214.02121582,0.0001792,2]
[376159496,1753879682275,461.18032094,0.00018821,2]